bitfinex-derivatives/quotes_ETHF0:USTF0_20250417
["timestamp","ask_amount","ask_price","bid_price","bid_amount"]
[1744863369195,4.196,1583.1,1583.0,2.91872]
[1744863370694,5.45944,1583.1,1583.0,2.91872]
[1744863371485,5.45944,1583.1,1583.0,1.6552]
[1744863372397,5.45944,1583.1,1583.0,2.91872]
[1744863372996,5.45944,1583.1,1583.0,1.6552]
[1744863373601,1.26352,1583.0,1582.9,0.8172]
[1744863373795,4.58872,1583.0,1582.9,2.4674]
[1744863374897,4.58872,1583.0,1582.9,1.6502]
[1744863378094,4.58872,1583.0,1582.9,2.9138]
[1744863378300,17.05554118,1583.1,1582.9,2.9138]
[1744863378501,15.79204118,1583.1,1583.0,2.96682]
[1744863379602,17.05548118,1583.1,1583.0,1.7033]
[1744863380005,18.65318118,1583.1,1583.0,1.7033]
[1744863380802,10.26494,1583.1,1583.0,1.7033]
[1744863381003,10.26494,1583.1,1583.0,2.96682]
[1744863381303,10.26494,1583.1,1583.0,1.7033]
[1744863383408,9.0015,1583.1,1583.0,2.96682]
[1744863383703,8.66724,1583.1,1583.0,2.96682]
[1744863384002,17.05548118,1583.1,1583.0,2.96682]
[1744863384390,8.38824118,1583.1,1583.0,2.96682]
[1744863384604,8.38824118,1583.1,1583.0,7.96682]
[1744863385701,5.24402563,1583.1,1583.0,13.82282]
[1744863387108,4.91902563,1583.1,1583.0,13.82282]
[1744863387901,0.00948196,1583.3,1583.1,1.26344]
[1744863388101,10.55262397,1583.7,1583.6,1.26304]
[1744863388801,10.55262397,1583.7,1583.6,3.82574]
[1744863389808,10.55262397,1583.7,1583.6,4.33113074]
[1744863391004,10.55262397,1583.7,1583.6,9.33113074]
[1744863391205,4.25237648,1583.7,1583.6,16.05803074]
[1744863391407,2.75841648,1583.7,1583.6,16.05803074]
[1744863391606,0.00948196,1583.8,1583.6,16.05803074]
[1744863391607,0.00948196,1583.8,1583.7,1.26296]
[1744863391910,1.96e-06,1583.8,1583.7,6.23026]
[1744863392110,1.96e-06,1583.8,1583.7,11.23026]
[1744863392303,3.2078,1584.4,1584.3,1.26248]
[1744863393203,1.66338196,1584.5,1584.2,3.022]
[1744863393403,0.8226,1584.3,1584.2,3.022]
[1744863395213,1.66338196,1584.5,1584.3,1.26242]
[1744863395414,2.51708196,1584.5,1584.3,3.01832]
[1744863396012,0.86318196,1584.5,1584.4,1.2624]
[1744863396212,0.86318196,1584.5,1584.4,3.0183]
[1744863396513,2.45198196,1584.5,1584.4,3.0183]
[1744863397409,2.45198196,1584.5,1584.4,1.2624]
[1744863401417,7.45198196,1584.5,1584.2,1.7343]
[1744863401716,4.47028,1584.3,1584.2,1.7343]
[1744863401916,4.47028,1584.3,1584.2,2.99686]
[1744863402117,5.30608,1584.3,1584.2,2.99686]
[1744863402719,0.8358,1584.3,1584.2,2.99686]
[1744863403321,2.09828,1584.3,1584.2,2.99686]
[1744863403616,3.82028,1584.3,1584.2,2.99686]
[1744863404519,2.5578,1584.3,1584.2,2.99686]
[1744863405325,3.82028,1584.3,1584.2,1.7343]
[1744863406319,3.82028,1584.3,1584.2,2.99686]
[1744863406520,3.82028,1584.3,1584.2,1.7343]
[1744863408522,3.82028,1584.3,1584.2,2.99686]
[1744863409226,2.5578,1584.3,1584.2,2.99686]
[1744863410226,2.12557196,1584.5,1584.3,1.26248]
[1744863410425,2.12557196,1584.5,1584.3,2.94508]
[1744863410625,3.85017196,1584.5,1584.3,2.94508]
[1744863410830,2.58778196,1584.5,1584.4,1.2624]
[1744863411127,0.86318196,1584.5,1584.4,3.7467]
[1744863414324,2.12550196,1584.5,1584.4,3.7467]
[1744863414527,2.12550196,1584.5,1584.4,2.4843]
[1744863414727,3.82180196,1584.5,1584.4,2.4843]
[1744863415130,3.82180196,1584.5,1584.4,3.7467]
[1744863416230,3.82180196,1584.5,1584.1,9.9347]
[1744863416231,2.55948196,1584.5,1584.1,9.9347]
[1744863416425,1.26251,1584.3,1584.2,2.86395]
[1744863416822,2.11391,1584.3,1584.2,2.86395]
[1744863419930,0.8514,1584.3,1584.2,2.86395]
[1744863420735,2.11388,1584.3,1584.2,2.86395]
[1744863421230,12.21542,1584.3,1583.6,105.83719074]
[1744863421428,4.47052,1584.0,1583.9,1.6125]
[1744863422135,6.99382,1584.0,1583.9,1.6125]
[1744863423233,5.4527,1584.1,1583.9,2.8753]
[1744863423434,1.26272,1584.0,1583.9,1.6125]
[1744863423641,2.91712,1584.0,1583.9,1.6125]
[1744863423835,6.99382,1584.0,1583.9,1.6125]
[1744863425343,1.26284,1583.9,1583.7,2.96501]
[1744863425640,2.07524,1583.9,1583.8,1.7334]
[1744863426339,2.07524,1583.9,1583.8,2.99628]
[1744863426540,1.26278,1584.0,1583.8,2.99628]
[1744863426841,1.26278,1584.0,1583.9,1.7334]
[1744863427244,1.26278,1584.0,1583.9,2.9962]
[1744863428240,6.26509,1584.1,1583.9,2.9962]
[1744863428439,6.26509,1584.1,1584.0,2.5659]
[1744863428639,6.26509,1584.1,1584.0,3.3645]
[1744863432040,6.26509,1584.1,1584.0,2.5659]
[1744863432247,1.2628,1583.9,1583.8,1.26283]
[1744863433048,2.90678,1584.0,1583.8,1.26283]
[1744863433235,3.2078,1584.2,1583.8,11.36501]
[1744863433442,6.82,1584.4,1584.0,6.3646]
[1744863433642,5.46083196,1584.5,1584.3,1.26245]
[1744863433947,5.46083196,1584.5,1584.4,3.4299]
[1744863434141,0.00948196,1584.5,1584.4,4.6923]
[1744863439452,0.00948196,1584.5,1584.1,5.856]
[1744863439656,3.2078,1584.3,1584.1,5.856]
[1744863439846,4.47034,1584.3,1584.1,7.4514]
[1744863440047,2.5949,1584.2,1584.1,8.71404]
[1744863440255,2.5949,1584.2,1584.1,7.11864]
[1744863440557,3.85746,1584.2,1584.1,5.856]
[1744863441054,2.5949,1584.2,1584.1,7.11864]
[1744863441550,2.13586,1584.2,1584.1,7.11864]
[1744863441752,2.13586,1584.2,1584.1,5.856]
[1744863441956,0.8733,1584.2,1584.1,7.11864]
[1744863442154,0.8733,1584.2,1584.0,1.7165]
[1744863442155,0.8733,1584.2,1584.0,0.8823]
[1744863442353,2.88736,1584.1,1583.8,7.3968]
[1744863442549,1.6247,1584.1,1584.0,1.26272]
[1744863442755,1.7223,1584.2,1584.1,1.26264]
[1744863443256,1.7223,1584.2,1583.9,0.832]
[1744863443257,1.7223,1584.2,1584.0,1.26267]
[1744863443455,2.98486,1584.2,1584.0,2.13317]
[1744863443655,4.60956,1584.2,1584.0,2.13317]
[1744863443855,4.60956,1584.2,1584.0,0.8705]
[1744863444055,1.26264,1584.1,1584.0,0.8705]
[1744863444358,2.88734,1584.1,1584.0,0.8705]
[1744863445854,1.26285,1583.9,1583.7,1.2629]
[1744863446148,1.26285,1583.9,1583.7,2.1246]
[1744863447361,1.26285,1583.9,1583.7,0.8617]
[1744863447555,1.26285,1583.9,1583.8,1.26288]
[1744863448162,1.26285,1583.9,1583.7,2.12461]
[1744863448355,2.06385,1583.9,1583.7,2.12461]
[1744863449459,1.26301,1583.7,1583.5,3.21728196]
[1744863449761,1.26301,1583.7,1583.5,4.48036196]
[1744863450164,1.26301,1583.7,1583.6,1.26304]
[1744863451163,1.26301,1583.7,1583.5,4.48035196]
[1744863452966,1.26301,1583.7,1583.5,1.27255196]
[1744863453665,2.95313,1583.8,1583.6,1.26304]
[1744863453868,5.27165,1583.9,1583.7,1.26296]
[1744863454068,3.2078,1583.9,1583.8,2.06048]
[1744863454363,1.26278,1584.0,1583.8,2.06048]
[1744863455963,5.99,1584.1,1584.0,1.26272]
[1744863456159,6.30058,1584.2,1584.0,1.26272]
[1744863456467,5.45158,1584.2,1584.1,1.6475]
[1744863459164,4.189,1584.2,1584.1,2.91014]
[1744863459664,0.8141,1584.3,1584.2,1.26256]
[1744863459869,0.8141,1584.3,1584.2,2.90546]
[1744863460973,4.188,1584.4,1584.3,1.26248]
[1744863461270,4.188,1584.4,1584.3,3.00178]
[1744863461671,12.3958,1584.4,1583.8,0.7976]
[1744863461971,12.3958,1584.4,1583.9,1.2628]
[1744863461972,1.26266,1584.1,1583.9,1.2628]
[1744863462165,4.63764,1584.0,1583.8,3.79975]
[1744863462364,0.8211,1584.0,1583.9,1.2628]
[1744863462565,0.8211,1584.0,1583.9,3.0021]
[1744863468679,4.188,1584.1,1584.0,1.26272]
[1744863468977,4.47039,1584.2,1584.0,3.80682]
[1744863469278,1.26264,1584.1,1584.0,2.5441]
[1744863469479,1.26264,1584.1,1584.0,0.8137]
[1744863470984,2.06874,1584.1,1584.0,0.8137]
[1744863471580,2.06874,1584.1,1584.0,2.07642]
[1744863471783,2.06874,1584.1,1584.0,0.8137]
[1744863472686,2.06874,1584.1,1584.0,2.07642]
[1744863474481,1.26251,1584.3,1584.0,0.8137]
[1744863474688,5.99948196,1584.5,1584.3,1.26248]
[1744863474886,0.00948196,1584.5,1584.3,1.26248]
[1744863475186,1.27185196,1584.5,1584.3,1.26248]
[1744863475986,1.2624,1584.4,1584.3,1.26248]
[1744863476684,1.2624,1584.4,1584.2,1.26251]
[1744863476988,1.26248,1584.4,1584.2,1.26251]
[1744863477489,1.26248,1584.3,1584.2,1.26251]
[1744863477787,2.05738,1584.3,1584.2,1.26251]
[1744863477993,0.7949,1584.3,1584.2,1.26251]
[1744863482193,3.2078,1584.0,1583.4,16.88559544]
[1744863482389,4.47084,1583.6,1583.5,18.18063893]
[1744863482586,8.65784,1583.6,1583.5,13.70717167]
[1744863482894,54.97398872,1583.6,1583.5,4.52e-06]
[1744863483392,56.09894,1583.6,1583.5,4.52e-06]
[1744863483697,56.09894,1583.6,1583.4,16.8950774]
[1744863483698,1.26312,1583.5,1583.4,16.8950774]
[1744863483888,3.74622,1583.5,1583.4,16.8950774]
[1744863484195,8.74622,1583.5,1583.4,16.8950774]
[1744863484797,7.93422,1583.5,1583.4,16.8950774]
[1744863487897,7.93422,1583.5,1583.4,0.00948196]
[1744863488196,13.92422,1583.5,1583.4,0.00948196]
[1744863488696,9.73622,1583.5,1583.4,0.00948196]
[1744863488893,14.06022,1583.5,1583.4,0.00948196]
[1744863490703,9.73622,1583.5,1583.4,0.00948196]
[1744863490900,14.06122,1583.5,1583.4,0.00948196]
[1744863491700,14.06122,1583.5,1583.4,1.96e-06]
[1744863492002,1.26352,1583.0,1582.9,1.6971]
[1744863492202,8.79632,1583.0,1582.9,1.6971]
[1744863496511,10.48002,1583.0,1582.9,1.6971]
[1744863499813,10.48002,1583.0,1582.7,0.8189]
[1744863499814,1.26368,1582.8,1582.7,0.8189]
[1744863500008,1.26376,1582.7,1582.6,1.7173]
[1744863500207,5.58976,1582.7,1582.6,1.7173]
[1744863502706,4.326,1582.7,1582.6,2.98114]
[1744863503111,4.48096196,1582.8,1582.7,1.26376]
[1744863503311,4.48096196,1582.8,1582.7,2.5038]
[1744863510317,6.23766196,1582.8,1582.7,2.5038]
[1744863511419,1.26384,1582.6,1582.5,0.8402]
[1744863511621,8.79864,1582.6,1582.5,0.8402]
[1744863511818,1.26392,1582.5,1582.4,0.8096]
[1744863512120,1.26397,1582.5,1582.3,1.26405]
[1744863512316,1.26394,1582.5,1582.3,1.26402]
[1744863512914,3.2078,1582.4,1582.3,1.26402]
[1744863513419,4.4718,1582.4,1582.2,2.9193]
[1744863514425,4.4718,1582.4,1582.3,1.6159]
[1744863517323,3.2078,1582.4,1582.3,2.87998]
[1744863519225,4.4718,1582.4,1582.3,1.6159]
[1744863519623,3.2078,1582.4,1582.3,2.87998]
[1744863519926,4.4718,1582.4,1582.3,2.87998]
[1744863521125,3.2078,1582.4,1582.3,2.87998]
[1744863522725,3.2078,1582.6,1582.5,1.26392]
[1744863523024,7.5008,1582.6,1582.5,1.26392]
[1744863523225,3.2078,1582.6,1582.5,1.26392]
[1744863523425,3.2078,1582.6,1582.5,2.10472]
[1744863523624,4.47164,1582.6,1582.5,0.8408]
[1744863524426,4.47164,1582.6,1582.5,2.5356]
[1744863525028,4.47164,1582.6,1582.5,3.79952]
[1744863525826,3.2078,1582.6,1582.5,3.79952]
[1744863526429,4.47164,1582.6,1582.5,3.79952]
[1744863526924,3.2078,1582.6,1582.5,3.79952]
[1744863537533,3.2078,1582.6,1582.5,2.5356]
[1744863538234,2.90516,1582.7,1582.6,1.26384]
[1744863538435,2.90516,1582.7,1582.6,3.72494]
[1744863538733,6.11296,1582.7,1582.6,3.72494]
[1744863541334,4.8492,1582.7,1582.6,3.72494]
[1744863543440,3.2078,1582.7,1582.6,3.72494]
[1744863543637,0.00948196,1582.8,1582.7,1.26376]
[1744863543832,0.00948196,1582.8,1582.7,2.96326]
[1744863552554,1.96e-06,1582.8,1582.7,7.96326]
[1744863552750,1.96e-06,1582.8,1582.7,12.18726]
[1744863555749,1.96e-06,1582.8,1582.7,18.04326]
[1744863558052,2.571,1583.3,1583.2,1.26336]
[1744863558253,0.8108,1583.5,1583.4,1.2632]
[1744863558553,3.2252,1583.5,1583.4,1.2632]
[1744863560556,4.48835,1583.5,1583.3,1.26323]
[1744863560755,4.8261,1583.4,1583.3,1.26323]
[1744863563360,9.8261,1583.4,1583.0,10.08]
[1744863563559,2.91508,1583.3,1583.1,1.26344]
[1744863563759,1.6518,1583.2,1583.1,1.26344]
[1744863567363,1.6518,1583.2,1583.1,2.93244]
[1744863568159,4.8596,1583.2,1582.7,13.2868]
[1744863568359,2.95876,1583.1,1582.9,1.26353]
[1744863568554,4.64906,1583.1,1582.9,1.26353]
[1744863568754,1.6903,1583.0,1582.9,1.26353]
[1744863569961,4.8981,1583.0,1582.9,1.26353]
[1744863570956,1.26363,1582.9,1582.7,6.35543]
[1744863571162,1.7229,1582.8,1582.7,2.13243]
[1744863572467,3.3311,1582.8,1582.7,3.74963]
[1744863574464,2.4654,1582.8,1582.7,3.74963]
[1744863576861,3.2078,1583.0,1582.9,1.2636]
[1744863577566,3.2078,1583.0,1582.9,2.886]
[1744863577866,1.76,1583.1,1583.0,1.26352]
[1744863578865,1.76,1583.1,1582.7,0.8687]
[1744863579166,3.2078,1582.9,1582.8,1.26368]
[1744863579662,4.934,1582.9,1582.8,1.26368]
[1744863586167,3.2078,1582.9,1582.8,2.10698]
[1744863589667,3.2078,1582.9,1582.8,6.32098]
[1744863589864,3.2078,1582.9,1582.8,11.32098]
[1744863590470,3.2078,1582.9,1582.8,6.32098]
[1744863593774,3.2078,1582.9,1582.8,8.05058]
[1744863594163,4.0172,1583.3,1583.2,1.26336]
[1744863594765,4.0172,1583.3,1583.2,3.84356]
[1744863595571,3.2078,1583.3,1583.2,3.84356]
[1744863596674,4.9136,1583.3,1583.2,3.84356]
[1744863599877,4.9136,1583.3,1583.2,1.26336]
[1744863603980,3.2078,1583.3,1583.2,1.26336]
[1744863604184,3.2078,1583.3,1583.2,2.96006]
[1744863604583,4.941,1583.3,1583.2,2.96006]
[1744863607286,4.00800063,1583.3,1583.2,2.96006]
[1744863609386,9.00800063,1583.3,1583.2,1.26336]
[1744863609883,4.00800063,1583.3,1583.2,1.26336]
[1744863613393,1.7332,1583.3,1583.2,1.26336]
[1744863613594,4.941,1583.3,1583.2,1.26336]
[1744863617100,4.941,1583.3,1583.2,2.94646]
[1744863617791,3.2078,1583.3,1583.2,2.94646]
[1744863618399,2.5536,1583.4,1583.3,1.26328]
[1744863619999,2.5536,1583.4,1583.2,2.5753]
[1744863620201,4.9222,1583.3,1583.1,1.26338]
[1744863620408,1.26336,1583.2,1582.9,1.26356]
[1744863620605,3.2078,1583.1,1582.9,1.26356]
[1744863620795,1.7144,1583.0,1582.9,1.26356]
[1744863629611,4.0606,1583.1,1583.0,1.26352]
[1744863629812,3.2078,1583.1,1583.0,1.26352]
[1744863630407,4.9306,1583.1,1583.0,1.26352]
[1744863630712,3.2078,1583.1,1583.0,2.92032]
[1744863631613,15.1136,1583.3,1583.2,1.26336]
[1744863631816,9.9792,1583.3,1583.2,1.26336]
[1744863632410,5.7862,1583.3,1583.2,1.26336]
[1744863636018,4.0634,1583.3,1583.2,1.26336]
[1744863636817,0.8556,1583.3,1583.2,1.26336]
[1744863637024,4.0634,1583.3,1583.2,1.26336]
[1744863638112,5.32668,1583.3,1583.2,1.26336]
[1744863639123,5.32668,1583.3,1583.1,3.01729]
[1744863639318,5.32668,1583.3,1583.1,1.7539]
[1744863639518,5.32668,1583.3,1583.2,1.26336]
[1744863640926,5.32668,1583.3,1583.1,3.01728]
[1744863641120,6.99118,1583.3,1583.1,3.01728]
[1744863641420,6.99118,1583.3,1583.2,1.75]
[1744863642925,3.78338,1583.3,1583.2,1.75]
[1744863643118,6.99118,1583.3,1583.2,1.75]
[1744863643422,6.99118,1583.3,1583.2,3.01336]
[1744863644224,6.99118,1583.3,1583.2,1.75]
[1744863644416,1.26344,1583.1,1583.0,2.92032]
[1744863644624,4.47124,1583.1,1583.0,0.8595]
[1744863644920,3.2078,1583.1,1583.0,2.12302]
[1744863645423,4.47124,1583.1,1583.0,2.12302]
[1744863645619,1.26352,1583.0,1582.9,2.99345]
[1744863645826,3.76712,1583.0,1582.9,1.26355]
[1744863646027,3.76712,1583.0,1582.8,4.64681]
[1744863646321,1.6411,1582.9,1582.8,4.64681]
[1744863649028,0.8625,1583.0,1582.9,1.2636]
[1744863649221,2.5348,1583.0,1582.9,3.0015]
[1744863650228,2.5348,1583.0,1582.9,1.7379]
[1744863650626,2.5348,1583.0,1582.8,1.6533]
[1744863650827,6.076,1582.9,1582.7,1.7516]
[1744863651125,1.6046,1582.8,1582.7,1.7516]
[1744863651331,2.86829,1582.8,1582.6,2.89778001]
[1744863651535,4.0845,1582.7,1582.6,4.64938001]
[1744863651723,5.6891,1582.7,1582.6,4.64938001]
[1744863652028,5.6891,1582.7,1582.6,4.64942001]
[1744863652831,5.6891,1582.7,1582.6,3.83842001]
[1744863655331,6.95286,1582.7,1582.6,2.57458001]
[1744863655529,5.6891,1582.7,1582.6,3.83842001]
[1744863657033,0.00948196,1582.8,1582.7,1.26376]
[1744863657236,0.00948196,1582.8,1582.7,3.69886]
[1744863660630,0.00948196,1582.8,1582.7,8.69886]
[1744863660835,3.2078,1583.1,1583.0,1.26352]
[1744863661426,21.41821997,1583.3,1583.1,1.26341]
[1744863661626,22.68150997,1583.3,1583.1,1.26341]
[1744863661826,22.68150997,1583.3,1583.1,2.86891]
[1744863662034,21.41821997,1583.3,1583.2,1.26336]
[1744863662241,10.51181997,1583.3,1583.2,1.26336]
[1744863662540,10.51181997,1583.3,1583.2,2.07356]
[1744863662836,13.71961997,1583.3,1583.2,0.8102]
[1744863663036,15.40211997,1583.3,1583.2,0.8102]
[1744863663639,15.40211997,1583.3,1583.2,1.26336]
[1744863663830,4.8903,1583.3,1583.2,1.26336]
[1744863665237,1.6825,1583.3,1583.2,1.26336]
[1744863665437,4.8903,1583.3,1583.1,3.67909]
[1744863666141,4.8903,1583.3,1583.2,1.26336]
[1744863668135,3.2078,1583.3,1583.2,3.01536]
[1744863669532,4.9396,1583.3,1583.2,3.01536]
[1744863671945,0.00948196,1583.4,1583.3,1.26328]
[1744863672241,0.00948196,1583.4,1583.3,3.78518]
[1744863683240,1.62058196,1583.4,1583.3,2.90368]
[1744863683443,1.62058196,1583.4,1583.3,1.26328]
[1744863691453,0.00948196,1583.4,1583.3,1.26328]
[1744863708972,13.71961997,1583.7,1583.6,1.26304]
[1744863709176,10.51181997,1583.7,1583.6,1.26304]
[1744863709377,8.88708389,1583.7,1583.6,6.26304]
[1744863709570,8.88708389,1583.7,1583.6,7.89534]
[1744863709771,8.88708389,1583.7,1583.6,8.39310686]
[1744863710279,8.88708389,1583.7,1583.6,7.89534]
[1744863710680,0.00948196,1583.8,1583.7,1.26296]
[1744863710974,0.00948196,1583.8,1583.7,4.61956]
[1744863712375,1.96e-06,1583.8,1583.7,12.82736]
[1744863712575,1.96e-06,1583.8,1583.7,18.68336]
[1744863718077,1.6,1584.3,1584.2,1.26256]
[1744863719282,1.6,1584.3,1584.2,2.87176]
[1744863720882,1.6,1584.3,1584.2,1.26256]
[1744863727890,1.6,1584.3,1584.2,3.00616]
[1744863735701,0.00948196,1584.4,1584.3,1.26248]
[1744863736200,1.63248196,1584.4,1584.3,1.26248]
[1744863739201,0.00948196,1584.4,1584.3,1.26248]
[1744863739389,0.00948196,1584.4,1584.3,5.44848]
[1744863740696,0.00948196,1584.4,1584.3,10.44848]
[1744863740896,1.96e-06,1584.4,1584.3,13.65628]
[1744863741296,1.96e-06,1584.4,1584.3,19.51228]
[1744863741602,0.80030196,1584.7,1584.6,1.26224]
[1744863741803,0.80030196,1584.7,1584.6,5.44824]
[1744863744202,2.51610196,1584.7,1584.6,5.44824]
[1744863746503,0.00948196,1584.8,1584.7,1.26216]
[1744863746801,0.00948196,1584.8,1584.7,2.86256]
[1744863747000,0.00948196,1584.8,1584.7,4.50786]
[1744863748402,0.00948196,1584.8,1584.7,5.0207927]
[1744863748600,1e-08,1584.8,1584.7,4.50786]
[1744863748797,5.6786,1585.2,1585.1,1.26185]
[1744863749395,5.6786,1585.2,1585.1,2.99195]
[1744863751005,2.4708,1585.2,1585.1,2.99195]
[1744863752002,0.84962135,1585.3,1585.2,1.26177]
[1744863752003,0.00632135,1585.3,1585.2,1.26177]
[1744863761216,1.66312135,1585.3,1585.2,1.26177]
[1744863767223,0.00632135,1585.3,1585.2,1.26177]
[1744863770124,0.00632135,1585.3,1585.2,5.44377]
[1744863771225,0.00632135,1585.3,1585.2,7.16527]
[1744863782045,0.00632135,1585.3,1585.2,8.02327]
[1744863798452,0.00632135,1585.3,1585.2,5.44377]
[1744863798654,1.70912135,1585.3,1585.2,5.44377]
[1744863799256,6.70912135,1585.3,1585.2,1.26177]
[1744863800558,9.91692135,1585.3,1585.0,5.0145]
[1744863800750,3.2078,1585.1,1584.9,22.29355311]
[1744863800950,3.3657,1585.0,1584.9,22.29358311]
[1744863803959,3.3657,1585.0,1584.9,1.26201]
[1744863809860,4.62765,1585.0,1584.8,1.26201]
[1744863810163,4.8336,1584.9,1584.8,1.26201]
[1744863811263,6.09561,1584.9,1584.8,1.26201]
[1744863812065,1.26208,1584.8,1584.5,1.62708196]
[1744863812260,1.6849,1584.7,1584.6,1.26222]
[1744863812460,6.15486,1584.7,1584.6,1.26222]
[1744863812664,6.6347,1584.7,1584.6,1.26222]
[1744863813267,7.8969,1584.7,1584.5,1.27174196]
[1744863813459,1.742,1584.6,1584.5,1.27174196]
[1744863814160,3.00424,1584.6,1584.5,0.00948196]
[1744863815864,8.00424,1584.6,1584.5,0.00948196]
[1744863817971,11.21204,1584.6,1584.5,0.00948196]
[1744863818765,4.9498,1584.6,1584.5,1.27180196]
[1744863819471,4.9498,1584.6,1584.5,2.89860196]
[1744863819776,6.21204,1584.6,1584.5,2.89860196]
[1744863820776,4.9498,1584.6,1584.5,2.89860196]
[1744863821276,6.21204,1584.6,1584.5,2.89860196]
[1744863821476,6.21204,1584.6,1584.5,0.00948196]
[1744863822575,12.20204,1584.6,1584.5,0.00948196]
[1744863822781,17.20204,1584.6,1584.5,1e-08]
[1744863828981,12.20204,1584.6,1584.5,1e-08]
[1744863836775,8.99424,1584.6,1584.5,1e-08]
[1744863836976,12.20204,1584.6,1584.5,1e-08]
[1744863837384,8.99424,1584.6,1584.5,1e-08]
[1744863837683,12.20204,1584.6,1584.5,1e-08]
[1744863840787,8.99424,1584.6,1584.5,1e-08]
[1744863840986,12.20204,1584.6,1584.5,1e-08]
[1744863841592,8.99424,1584.6,1584.5,1e-08]
[1744863841892,12.20204,1584.6,1584.5,1e-08]
[1744863847198,8.99424,1584.6,1584.5,1e-08]
[1744863847599,12.20204,1584.6,1584.5,1e-08]
[1744863857803,22.68048629,1584.6,1584.5,1e-08]
[1744863858211,27.79651802,1584.6,1584.5,1e-08]
[1744863859112,27.79652792,1584.6,1584.5,1e-08]
[1744863860307,22.79652792,1584.6,1584.5,1e-08]
[1744863860709,12.31808163,1584.6,1584.5,1e-08]
[1744863865512,12.31807659,1584.6,1584.5,1e-08]
[1744863867016,12.20204,1584.6,1584.5,1e-08]
[1744863867313,12.31807888,1584.6,1584.5,1e-08]
[1744863867513,16.49507888,1584.6,1584.5,1e-08]
[1744863868013,12.31807888,1584.6,1584.5,1e-08]
[1744863868214,16.49507888,1584.6,1584.5,1e-08]
[1744863868714,12.31807888,1584.6,1584.5,1e-08]
[1744863868903,16.49507888,1584.6,1584.5,1e-08]
[1744863869716,12.31807888,1584.6,1584.5,1e-08]
[1744863870411,16.49507888,1584.6,1584.5,1.68570001]
[1744863870714,12.31807888,1584.6,1584.5,1.68570001]
[1744863870916,16.49507888,1584.6,1584.5,1.68570001]
[1744863871216,12.31807888,1584.6,1584.5,1.68570001]
[1744863871413,16.49607888,1584.6,1584.5,1.68570001]
[1744863871917,14.75407579,1584.6,1584.5,1.68570001]
[1744863872319,14.63804,1584.6,1584.5,1.68570001]
[1744863875216,16.34104,1584.6,1584.5,1.68570001]
[1744863876924,25.18573493,1584.6,1584.5,1.68570001]
[1744863878122,19.19473493,1584.6,1584.5,1.68570001]
[1744863880120,8.64704,1584.6,1584.5,1.68570001]
[1744863880919,8.64704,1584.6,1584.5,1e-08]
[1744863881114,12.00934,1584.6,1584.5,1e-08]
[1744863881427,11.12774,1584.6,1584.5,1e-08]
[1744863881627,11.12774,1584.6,1584.5,1.76230001]
[1744863883228,11.12774,1584.6,1584.5,0.88190001]
[1744863883529,11.12774,1584.6,1584.5,1e-08]
[1744863883827,17.11774,1584.6,1584.5,1e-08]
[1744863887936,14.63704,1584.6,1584.5,2.51430001]
[1744863888433,14.63704,1584.6,1584.5,1e-08]
[1744863888634,16.35524,1584.6,1584.5,1e-08]
[1744863890139,16.35524,1584.6,1584.5,1.71210001]
[1744863891234,16.35524,1584.6,1584.5,2.54930001]
[1744863893228,26.90365089,1584.6,1584.5,2.54930001]
[1744863896036,26.90365089,1584.6,1584.5,1e-08]
[1744863898337,16.35524,1584.6,1584.5,1e-08]
[1744863901142,16.35524,1584.6,1584.5,0.83220001]
[1744863901643,14.63704,1584.6,1584.5,0.83220001]
[1744863902234,16.38664,1584.6,1584.5,0.83220001]
[1744863902836,16.38664,1584.6,1584.5,1.71030001]
[1744863904736,14.63704,1584.6,1584.5,1.71030001]
[1744863904936,14.63404,1584.6,1584.5,1.71030001]
[1744863905150,25.18446584,1584.6,1584.5,8.34120001]
[1744863906542,25.18446584,1584.6,1584.5,3.34120001]
[1744863907240,27.57876584,1584.6,1584.5,3.34120001]
[1744863907442,17.02834,1584.6,1584.5,3.34120001]
[1744863910946,17.02834,1584.6,1584.5,2.46310001]
[1744863911146,17.02834,1584.6,1584.5,1e-08]
[1744863912952,17.14437721,1584.6,1584.5,1e-08]
[1744863914054,27.69480305,1584.6,1584.5,1e-08]
[1744863914652,24.48700305,1584.6,1584.5,1e-08]
[1744863914843,27.69480305,1584.6,1584.5,1e-08]
[1744863916451,27.57876584,1584.6,1584.5,1e-08]
[1744863916648,27.69480272,1584.6,1584.5,1e-08]
[1744863916850,17.14437688,1584.6,1584.5,1e-08]
[1744863917052,17.02834,1584.6,1584.5,1e-08]
[1744863918649,17.02834,1584.6,1584.5,1.75880001]
[1744863920060,17.02834,1584.6,1584.5,1e-08]
[1744863920755,17.14437566,1584.6,1584.5,1e-08]
[1744863921353,17.14438241,1584.6,1584.5,1e-08]
[1744863923761,22.14438241,1584.6,1584.5,1e-08]
[1744863924060,1.26264,1584.1,1584.0,0.8469]
[1744863924263,8.64244,1584.1,1584.0,0.8469]
[1744863924653,10.38284,1584.1,1584.0,0.8469]
[1744863925061,10.38284,1584.1,1584.0,1.6541]
[1744863925462,8.64244,1584.1,1584.0,1.6541]
[1744863927667,14.63244,1584.1,1584.0,1.6541]
[1744863930064,16.22794,1584.1,1584.0,1.6541]
[1744863931167,16.22794,1584.1,1584.0,0.8469]
[1744863931766,1.26272,1584.0,1583.9,1.75778196]
[1744863931967,3.71422,1584.0,1583.9,1.75778196]
[1744863932158,1.26272,1584.0,1583.9,1.75778196]
[1744863932358,1.26272,1584.0,1583.9,2.55738196]
[1744863934365,3.77262,1584.0,1583.9,2.55738196]
[1744863935258,1.26272,1584.0,1583.9,2.55738196]
[1744863944473,7.25272,1584.0,1583.9,0.00948196]
[1744863944668,1.26296,1583.7,1583.6,3.3593]